[Event "Schack-SM 2023: Junior-SM"]
[Site "Helsingborg Arena, Mellersta Stenbocksgatan 14, Helsingborg, Sweden"]
[Date "2023.07.06"]
[Round "6.1"]
[White "Dingertz, Erik"]
[Black "Seo, Jung Hyun"]
[Result "0-1"]
[TimeControl "90 minutes for 40 moves + 30 minutes for the rest of the game + 30 seconds per move from move one."]
[WhiteElo "2090"]
[BlackElo "2124"]

1. c4 {[%clk 01:30:57]} {[%emt 00:00:01]} e6 {[%clk 01:30:58]} {[%emt
00:00:03]} 2. g3 {[%clk 01:31:24]} {[%emt 00:00:03]} d5 {[%clk 01:31:25]}
{[%emt 00:00:03]} 3. Bg2 {[%clk 01:31:50]} {[%emt 00:00:04]} Nf6 {[%clk
01:31:09]} {[%emt 00:00:46]} 4. d4 {[%clk 01:32:10]} {[%emt 00:00:10]} c6
{[%clk 01:30:03]} {[%emt 00:01:35]} 5. Nf3 {[%clk 01:32:23]} {[%emt 00:00:17]}
Nbd7 {[%clk 01:30:28]} {[%emt 00:00:06]} 6. Nbd2 {[%clk 01:32:41]} {[%emt
00:00:12]} Be7 {[%clk 01:30:33]} {[%emt 00:00:25]} 7. O-O {[%clk 01:33:02]}
{[%emt 00:00:08]} a5 {[%clk 01:30:11]} {[%emt 00:00:53]} 8. Qc2 {[%clk
01:31:20]} {[%emt 00:02:12]} b5 {[%clk 01:27:27]} {[%emt 00:03:13]} 9. c5
{[%clk 01:27:02]} {[%emt 00:04:49]} e5 {[%clk 01:04:14]} {[%emt 00:23:43]} 10.
Nxe5 {[%clk 01:13:28]} {[%emt 00:14:04]} Nxe5 {[%clk 01:04:30]} {[%emt
00:00:14]} 11. dxe5 {[%clk 01:13:56]} {[%emt 00:00:02]} Nd7 {[%clk 01:04:23]}
{[%emt 00:00:37]} 12. e4 {[%clk 01:13:59]} {[%emt 00:00:28]} d4 {[%clk
01:01:46]} {[%emt 00:03:06]} 13. e6 {[%clk 01:11:18]} {[%emt 00:03:11]} fxe6
{[%clk 01:01:34]} {[%emt 00:00:42]} 14. e5 {[%clk 01:11:39]} {[%emt 00:00:10]}
Ra6 {[%clk 00:57:38]} {[%emt 00:04:25]} 15. Ne4 {[%clk 01:01:25]} {[%emt
00:10:45]} Nxe5 {[%clk 00:55:09]} {[%emt 00:02:58]} 16. Bf4 {[%clk 01:00:35]}
{[%emt 00:01:21]} Nf7 {[%clk 00:47:18]} {[%emt 00:08:21]} 17. Rae1 {[%clk
00:39:41]} {[%emt 00:21:23]} O-O {[%clk 00:42:45]} {[%emt 00:05:03]} 18. Nd2
{[%clk 00:37:35]} {[%emt 00:02:36]} d3 {[%clk 00:40:21]} {[%emt 00:02:53]} 19.
Qb3 {[%clk 00:36:44]} {[%emt 00:01:22]} Bxc5 {[%clk 00:37:39]} {[%emt
00:03:12]} 20. Be4 {[%clk 00:36:56]} {[%emt 00:00:18]} a4 {[%clk 00:35:06]}
{[%emt 00:03:01]} 21. Qc3 {[%clk 00:36:55]} {[%emt 00:00:33]} Qd4 {[%clk
00:35:15]} {[%emt 00:00:21]} 22. Qc1 {[%clk 00:27:19]} {[%emt 00:10:06]} Bb4
{[%clk 00:34:44]} {[%emt 00:01:00]} 23. a3 {[%clk 00:26:52]} {[%emt 00:00:58]}
Ba5 {[%clk 00:31:52]} {[%emt 00:03:22]} 24. Nf3 {[%clk 00:24:06]} {[%emt
00:03:16]} Qf6 {[%clk 00:30:13]} {[%emt 00:02:09]} 25. Bxd3 {[%clk 00:23:51]}
{[%emt 00:00:45]} Bxe1 {[%clk 00:28:30]} {[%emt 00:02:12]} 26. Qxe1 {[%clk
00:23:41]} {[%emt 00:00:40]} e5 {[%clk 00:26:55]} {[%emt 00:02:06]} 27. Nxe5
{[%clk 00:23:27]} {[%emt 00:00:44]} Bf5 {[%clk 00:26:27]} {[%emt 00:00:58]} 28.
Nxf7 {[%clk 00:17:58]} {[%emt 00:05:59]} Bxd3 {[%clk 00:25:37]} {[%emt
00:01:20]} 29. Ne5 {[%clk 00:17:42]} {[%emt 00:00:45]} Bxf1 {[%clk 00:25:52]}
{[%emt 00:00:16]} 30. Nd7 {[%clk 00:18:06]} {[%emt 00:00:06]} Qf7 {[%clk
00:25:16]} {[%emt 00:01:04]} 31. Nxf8 {[%clk 00:15:19]} {[%emt 00:03:19]} Bc4
{[%clk 00:25:08]} {[%emt 00:00:37]} 32. Bd6 {[%clk 00:15:24]} {[%emt 00:00:26]}
Ra8 {[%clk 00:25:27]} {[%emt 00:00:11]} 33. Qe4 {[%clk 00:15:37]} {[%emt
00:00:17]} Rxf8 {[%clk 00:25:43]} {[%emt 00:00:15]} 34. Bxf8 {[%clk 00:16:03]}
{[%emt 00:00:04]} Qxf8 {[%clk 00:26:05]} {[%emt 00:00:08]} 35. Qxc6 {[%clk
00:16:29]} {[%emt 00:00:03]} Qd8 {[%clk 00:25:54]} {[%emt 00:00:38]} 36. h4
{[%clk 00:16:36]} {[%emt 00:00:27]} Qd1+ {[%clk 00:26:11]} {[%emt 00:00:12]} 37.
Kh2 {[%clk 00:17:02]} {[%emt 00:00:05]} Qd8 {[%clk 00:26:16]} {[%emt 00:00:25]}
38. h5 {[%clk 00:17:02]} {[%emt 00:00:30]} Qf8 {[%clk 00:26:33]} {[%emt
00:00:12]} 39. Kg1 {[%clk 00:16:48]} {[%emt 00:00:44]} h6 {[%clk 00:26:45]}
{[%emt 00:00:18]} 40. g4 {[%clk 00:16:16]} {[%emt 00:01:01]} Qe7 {[%clk
00:26:37]} {[%emt 00:00:36]} 41. Kg2 {[%clk 00:15:35]} {[%emt 00:01:13]} Qe5
{[%clk 00:26:46]} {[%emt 00:00:20]} 42. Kg1 {[%clk 00:15:08]} {[%emt 00:00:58]}
Qe1+ {[%clk 00:27:06]} {[%emt 00:00:10]} 43. Kg2 {[%clk 00:15:31]} {[%emt
00:00:06]} Qf1+ {[%clk 00:26:17]} {[%emt 00:01:19]} 44. Kg3 {[%clk 00:15:53]}
{[%emt 00:00:09]} Qg1+ {[%clk 00:26:42]} {[%emt 00:00:05]} 45. Kf4 {[%clk
00:16:04]} {[%emt 00:00:19]} Qxf2+ {[%clk 00:27:06]} {[%emt 00:00:05]} 46. Ke5
{[%clk 00:16:32]} {[%emt 00:00:02]} Qe3+ {[%clk 00:27:24]} {[%emt 00:00:12]}
0-1

[Event "Schack-SM 2023: Junior-SM"]
[Site "Helsingborg Arena, Mellersta Stenbocksgatan 14, Helsingborg, Sweden"]
[Date "2023.07.06"]
[Round "6.2"]
[White "Strom-Engdahl, Alexander"]
[Black "Persson, Sebastian 2007"]
[Result "1-0"]
[TimeControl "90 minutes for 40 moves + 30 minutes for the rest of the game + 30 seconds per move from move one."]
[WhiteElo "2120"]
[BlackElo "1947"]

1. e4 {[%clk 01:30:56]} {[%emt 00:00:03]} c6 {[%clk 01:30:53]} {[%emt
00:00:08]} 2. d4 {[%clk 01:31:10]} {[%emt 00:00:15]} d5 {[%clk 01:31:16]}
{[%emt 00:00:07]} 3. exd5 {[%clk 01:31:37]} {[%emt 00:00:04]} cxd5 {[%clk
01:31:40]} {[%emt 00:00:06]} 4. Bd3 {[%clk 01:32:01]} {[%emt 00:00:06]} Nc6
{[%clk 01:31:59]} {[%emt 00:00:11]} 5. c3 {[%clk 01:32:26]} {[%emt 00:00:06]}
Nf6 {[%clk 01:32:19]} {[%emt 00:00:09]} 6. Bf4 {[%clk 01:32:50]} {[%emt
00:00:06]} Bg4 {[%clk 01:28:31]} {[%emt 00:04:17]} 7. Qb3 {[%clk 01:33:10]}
{[%emt 00:00:10]} Qc8 {[%clk 01:28:42]} {[%emt 00:00:19]} 8. Nd2 {[%clk
01:32:59]} {[%emt 00:00:42]} e6 {[%clk 01:25:23]} {[%emt 00:03:49]} 9. Ngf3
{[%clk 01:33:17]} {[%emt 00:00:11]} Be7 {[%clk 01:23:24]} {[%emt 00:02:29]} 10.
O-O {[%clk 01:33:20]} {[%emt 00:00:28]} O-O {[%clk 01:23:32]} {[%emt 00:00:21]}
11. Rfe1 {[%clk 01:32:37]} {[%emt 00:01:12]} Nd7 {[%clk 01:09:16]} {[%emt
00:14:46]} 12. Qc2 {[%clk 01:28:32]} {[%emt 00:04:37]} h5 {[%clk 01:05:20]}
{[%emt 00:04:26]} 13. h3 {[%clk 01:23:23]} {[%emt 00:05:39]} Bxf3 {[%clk
01:05:40]} {[%emt 00:00:09]} 14. Nxf3 {[%clk 01:23:47]} {[%emt 00:00:06]} Qd8
{[%clk 01:01:46]} {[%emt 00:04:24]} 15. Qe2 {[%clk 01:17:04]} {[%emt 00:07:13]}
Re8 {[%clk 00:57:07]} {[%emt 00:05:09]} 16. b4 {[%clk 01:10:58]} {[%emt
00:06:37]} Nf8 {[%clk 00:44:17]} {[%emt 00:13:18]} 17. a4 {[%clk 01:04:33]}
{[%emt 00:06:56]} Rc8 {[%clk 00:39:49]} {[%emt 00:04:58]} 18. Qd2 {[%clk
00:59:21]} {[%emt 00:05:42]} Bf6 {[%clk 00:37:36]} {[%emt 00:02:44]} 19. g4
{[%clk 00:53:44]} {[%emt 00:06:08]} hxg4 {[%clk 00:24:33]} {[%emt 00:13:32]} 20.
hxg4 {[%clk 00:53:51]} {[%emt 00:00:23]} Nd7 {[%clk 00:24:53]} {[%emt
00:00:10]} 21. Be5 {[%clk 00:43:29]} {[%emt 00:10:52]} Ncxe5 {[%clk 00:20:15]}
{[%emt 00:05:08]} 22. dxe5 {[%clk 00:43:34]} {[%emt 00:00:25]} Be7 {[%clk
00:20:34]} {[%emt 00:00:10]} 23. g5 {[%clk 00:40:01]} {[%emt 00:04:03]} g6
{[%clk 00:17:07]} {[%emt 00:03:57]} 24. Kg2 {[%clk 00:38:29]} {[%emt 00:02:02]}
Qc7 {[%clk 00:17:00]} {[%emt 00:00:37]} 25. Rac1 {[%clk 00:37:11]} {[%emt
00:01:47]} Kg7 {[%clk 00:16:04]} {[%emt 00:01:26]} 26. Qf4 {[%clk 00:32:30]}
{[%emt 00:05:11]} Rh8 {[%clk 00:14:45]} {[%emt 00:01:50]} 27. Rh1 {[%clk
00:31:04]} {[%emt 00:01:57]} Rh5 {[%clk 00:09:23]} {[%emt 00:05:51]} 28. Rxh5
{[%clk 00:28:52]} {[%emt 00:02:42]} gxh5 {[%clk 00:09:45]} {[%emt 00:00:08]} 29.
c4 {[%clk 00:22:49]} {[%emt 00:06:34]} Bxb4 {[%clk 00:06:17]} {[%emt 00:03:57]}
30. g6 {[%clk 00:19:44]} {[%emt 00:03:35]} f6 {[%clk 00:03:46]} {[%emt
00:03:01]} 31. Rh1 {[%clk 00:17:46]} {[%emt 00:02:28]} Nxe5 {[%clk 00:00:43]}
{[%emt 00:03:33]} 32. Rxh5 {[%clk 00:17:46]} {[%emt 00:00:31]} Nxg6 {[%clk
00:00:37]} {[%emt 00:00:36]} 33. Qh6+ {[%clk 00:18:05]} {[%emt 00:00:11]} Kf7
{[%clk 00:01:02]} {[%emt 00:00:06]} 34. Qxg6+ {[%clk 00:18:24]} {[%emt
00:00:10]} 1-0

[ePGN "0.1;DGT LiveChess/2.2.5"]

[Event "Schack-SM 2023: Mastarklassen"]
[Site "Helsingborg Arena, Mellersta Stenbocksgatan 14, Helsingborg, Sweden"]
[Date "2023.07.06"]
[Round "6.1"]
[White "Jogstad, Daniel"]
[Black "Nygren, David"]
[Result "1-0"]
[TimeControl "90 minutes for 40 moves + 30 minutes for the rest of games + 30 seconds per move from move one."]
[WhiteTitle "CM"]
[WhiteElo "2131"]
[BlackElo "2157"]

1. d4 {[%clk 01:30:57]} {[%emt 00:00:02]} Nf6 {[%clk 01:30:43]} {[%emt
00:00:17]} 2. c4 {[%clk 01:31:18]} {[%emt 00:00:09]} e6 {[%clk 01:30:54]}
{[%emt 00:00:19]} 3. g3 {[%clk 01:30:54]} {[%emt 00:00:54]} c5 {[%clk
01:30:41]} {[%emt 00:00:43]} 4. d5 {[%clk 01:30:33]} {[%emt 00:00:51]} exd5
{[%clk 01:31:05]} {[%emt 00:00:06]} 5. cxd5 {[%clk 01:30:59]} {[%emt 00:00:04]}
d6 {[%clk 01:31:02]} {[%emt 00:00:33]} 6. Bg2 {[%clk 01:31:08]} {[%emt
00:00:21]} g6 {[%clk 01:30:53]} {[%emt 00:00:39]} 7. Nc3 {[%clk 01:30:23]}
{[%emt 00:01:15]} Bg7 {[%clk 01:30:36]} {[%emt 00:00:47]} 8. Nf3 {[%clk
01:30:34]} {[%emt 00:00:20]} O-O {[%clk 01:30:01]} {[%emt 00:01:05]} 9. O-O
{[%clk 01:30:54]} {[%emt 00:00:09]} Re8 {[%clk 01:29:24]} {[%emt 00:01:07]} 10.
Bf4 {[%clk 01:27:20]} {[%emt 00:04:04]} Ne4 {[%clk 01:27:44]} {[%emt 00:02:09]}
11. Nxe4 {[%clk 01:26:58]} {[%emt 00:00:53]} Rxe4 {[%clk 01:28:08]} {[%emt
00:00:06]} 12. Nd2 {[%clk 01:26:58]} {[%emt 00:00:30]} Rb4 {[%clk 01:27:52]}
{[%emt 00:00:46]} 13. a3 {[%clk 01:27:22]} {[%emt 00:00:07]} Rxf4 {[%clk
01:27:26]} {[%emt 00:00:56]} 14. gxf4 {[%clk 01:27:46]} {[%emt 00:00:05]} Bxb2
{[%clk 01:27:47]} {[%emt 00:00:09]} 15. Rb1 {[%clk 01:28:12]} {[%emt 00:00:05]}
Bxa3 {[%clk 01:26:16]} {[%emt 00:02:01]} 16. Ne4 {[%clk 01:28:33]} {[%emt
00:00:08]} Bf5 {[%clk 00:59:30]} {[%emt 00:27:16]} 17. Rxb7 {[%clk 01:28:08]}
{[%emt 00:00:56]} Bxe4 {[%clk 00:59:51]} {[%emt 00:00:09]} 18. Bxe4 {[%clk
01:28:01]} {[%emt 00:00:36]} Bb4 {[%clk 00:57:57]} {[%emt 00:02:24]} 19. Qa4
{[%clk 00:54:52]} {[%emt 00:33:38]} a6 {[%clk 00:49:14]} {[%emt 00:09:13]} 20.
f5 {[%clk 00:38:26]} {[%emt 00:16:56]} Qc8 {[%clk 00:37:35]} {[%emt 00:12:09]}
21. f6 {[%clk 00:38:37]} {[%emt 00:00:19]} Bc3 {[%clk 00:34:43]} {[%emt
00:03:24]} 22. Re7 {[%clk 00:37:57]} {[%emt 00:01:10]} Kf8 {[%clk 00:31:55]}
{[%emt 00:03:17]} 23. Bf5 {[%clk 00:38:20]} {[%emt 00:00:08]} gxf5 {[%clk
00:31:00]} {[%emt 00:01:24]} 24. Qh4 {[%clk 00:38:27]} {[%emt 00:00:23]} 1-0

[Event "Schack-SM 2023: Mastarklassen-elit"]
[Site "Helsingborg Arena, Mellersta Stenbocksgatan 14, Helsingborg, Sweden"]
[Date "2023.07.05"]
[Round "5.5"]
[White "Wiedenkeller, Michael"]
[Black "Walinder, Lars"]
[Result "1-0"]
[TimeControl "90 minutes for 40 moves + 30 minutes for the rest of games + 30 seconds per move from move one."]
[WhiteTitle "IM"]
[BlackTitle "FM"]
[WhiteElo "2445"]
[BlackElo "2310"]

1. d4 {[%clk 01:30:33]} {[%emt 00:00:26]} e6 {[%clk 01:30:44]} {[%emt
00:00:17]} 2. c4 {[%clk 01:30:48]} {[%emt 00:00:15]} Nf6 {[%clk 01:31:02]}
{[%emt 00:00:13]} 3. Nc3 {[%clk 01:31:03]} {[%emt 00:00:13]} Bb4 {[%clk
01:30:51]} {[%emt 00:00:43]} 4. e3 {[%clk 01:29:20]} {[%emt 00:02:12]} c5
{[%clk 01:31:04]} {[%emt 00:00:17]} 5. Bd3 {[%clk 01:29:29]} {[%emt 00:00:22]}
Nc6 {[%clk 01:30:46]} {[%emt 00:00:48]} 6. Nge2 {[%clk 01:29:40]} {[%emt
00:00:19]} cxd4 {[%clk 01:30:52]} {[%emt 00:00:24]} 7. exd4 {[%clk 01:30:00]}
{[%emt 00:00:11]} d5 {[%clk 01:30:59]} {[%emt 00:00:22]} 8. cxd5 {[%clk
01:30:15]} {[%emt 00:00:16]} Nxd5 {[%clk 01:30:23]} {[%emt 00:01:06]} 9. O-O
{[%clk 01:30:18]} {[%emt 00:00:27]} O-O {[%clk 01:30:09]} {[%emt 00:00:45]} 10.
Bc2 {[%clk 01:28:34]} {[%emt 00:02:13]} Bd6 {[%clk 01:21:37]} {[%emt 00:09:02]}
11. Ne4 {[%clk 01:20:59]} {[%emt 00:08:05]} b6 {[%clk 01:16:31]} {[%emt
00:05:36]} 12. a3 {[%clk 01:11:07]} {[%emt 00:10:23]} Ba6 {[%clk 01:09:22]}
{[%emt 00:07:37]} 13. Re1 {[%clk 01:11:16]} {[%emt 00:00:22]} Rc8 {[%clk
01:08:03]} {[%emt 00:01:48]} 14. N2c3 {[%clk 01:06:54]} {[%emt 00:04:52]} Nce7
{[%clk 01:00:10]} {[%emt 00:08:23]} 15. Qh5 {[%clk 00:58:32]} {[%emt 00:08:53]}
Ng6 {[%clk 00:53:15]} {[%emt 00:07:25]} 16. Ng5 {[%clk 00:46:05]} {[%emt
00:12:57]} Nf6 {[%clk 00:50:24]} {[%emt 00:03:22]} 17. Qh3 {[%clk 00:46:19]}
{[%emt 00:00:16]} Re8 {[%clk 00:38:43]} {[%emt 00:12:13]} 18. Be3 {[%clk
00:36:30]} {[%emt 00:10:17]} Bb7 {[%clk 00:37:07]} {[%emt 00:02:06]} 19. Rac1
{[%clk 00:32:35]} {[%emt 00:04:24]} a6 {[%clk 00:28:29]} {[%emt 00:09:09]} 20.
Red1 {[%clk 00:28:16]} {[%emt 00:04:49]} b5 {[%clk 00:27:56]} {[%emt 00:01:03]}
21. Nce4 {[%clk 00:25:55]} {[%emt 00:02:51]} Bxe4 {[%clk 00:26:18]} {[%emt
00:02:08]} 22. Bxe4 {[%clk 00:26:05]} {[%emt 00:00:20]} Nf8 {[%clk 00:17:42]}
{[%emt 00:09:06]} 23. Bb7 {[%clk 00:19:19]} {[%emt 00:07:16]} Rxc1 {[%clk
00:17:18]} {[%emt 00:00:56]} 24. Rxc1 {[%clk 00:19:40]} {[%emt 00:00:07]} Nd5
{[%clk 00:15:04]} {[%emt 00:02:43]} 25. Bc6 {[%clk 00:13:34]} {[%emt 00:06:37]}
Re7 {[%clk 00:13:26]} {[%emt 00:02:06]} 26. Bxd5 {[%clk 00:11:28]} {[%emt
00:02:36]} exd5 {[%clk 00:13:51]} {[%emt 00:00:05]} 27. Rc8 {[%clk 00:05:34]}
{[%emt 00:06:24]} Rxe3 {[%clk 00:14:03]} {[%emt 00:00:17]} 28. Qxh7+ {[%clk
00:05:59]} {[%emt 00:00:05]} Nxh7 {[%clk 00:14:24]} {[%emt 00:00:10]} 29. Rxd8+
{[%clk 00:06:28]} {[%emt 00:00:01]} Bf8 {[%clk 00:13:56]} {[%emt 00:00:58]} 30.
fxe3 {[%clk 00:06:48]} {[%emt 00:00:10]} Nxg5 {[%clk 00:14:20]} {[%emt
00:00:06]} 31. Ra8 {[%clk 00:06:30]} {[%emt 00:00:47]} Ne4 {[%clk 00:13:46]}
{[%emt 00:01:04]} 32. Rxa6 {[%clk 00:06:39]} {[%emt 00:00:21]} Be7 {[%clk
00:13:16]} {[%emt 00:00:59]} 33. Rb6 {[%clk 00:05:43]} {[%emt 00:01:27]} Bg5
{[%clk 00:11:30]} {[%emt 00:02:17]} 34. Rxb5 {[%clk 00:05:31]} {[%emt
00:00:41]} Bxe3+ {[%clk 00:11:55]} {[%emt 00:00:06]} 35. Kf1 {[%clk 00:05:54]}
{[%emt 00:00:07]} Bxd4 {[%clk 00:12:07]} {[%emt 00:00:17]} 36. a4 {[%clk
00:04:28]} {[%emt 00:01:57]} Kf8 {[%clk 00:12:18]} {[%emt 00:00:19]} 37. a5
{[%clk 00:04:13]} {[%emt 00:00:46]} Ke7 {[%clk 00:12:12]} {[%emt 00:00:35]} 38.
Rxd5 {[%clk 00:04:02]} {[%emt 00:00:41]} Bxb2 {[%clk 00:10:51]} {[%emt
00:01:52]} 39. a6 {[%clk 00:04:21]} {[%emt 00:00:11]} Ke6 {[%clk 00:10:07]}
{[%emt 00:01:13]} 40. Rd1 {[%clk 00:03:41]} {[%emt 00:01:08]} 1-0

[Event "Schack-SM 2023: Veteran-SM 65+"]
[Site "Helsingborg Arena, Mellersta Stenbocksgatan 14, Helsingborg, Sweden"]
[Date "2023.07.05"]
[Round "5.6"]
[White "Alfven, Jorgen"]
[Black "Sigeman, Johan"]
[Result "0-1"]
[TimeControl "90 minutes for 40 moves + 30 minutes for the rest of games + 30 seconds per move from move one."]
[WhiteElo "1726"]
[BlackElo "2052"]

1. d4 {[%clk 01:30:48]} {[%emt 00:00:11]} Nf6 {[%clk 01:29:51]} {[%emt
00:01:09]} 2. c4 {[%clk 01:30:44]} {[%emt 00:00:34]} e6 {[%clk 01:29:49]}
{[%emt 00:00:32]} 3. Nc3 {[%clk 01:29:38]} {[%emt 00:01:36]} Bb4 {[%clk
01:29:41]} {[%emt 00:00:39]} 4. Qc2 {[%clk 01:30:02]} {[%emt 00:00:05]} O-O
{[%clk 01:29:43]} {[%emt 00:00:28]} 5. e3 {[%clk 01:28:19]} {[%emt 00:02:14]}
c5 {[%clk 01:26:26]} {[%emt 00:03:46]} 6. a3 {[%clk 01:28:03]} {[%emt
00:00:46]} cxd4 {[%clk 01:25:28]} {[%emt 00:01:29]} 7. axb4 {[%clk 01:24:40]}
{[%emt 00:03:52]} dxc3 {[%clk 01:25:52]} {[%emt 00:00:06]} 8. bxc3 {[%clk
01:24:37]} {[%emt 00:00:33]} b6 {[%clk 01:24:38]} {[%emt 00:01:44]} 9. Be2
{[%clk 01:17:51]} {[%emt 00:07:15]} Bb7 {[%clk 01:24:48]} {[%emt 00:00:21]} 10.
Bf3 {[%clk 01:17:44]} {[%emt 00:00:37]} Bxf3 {[%clk 01:24:13]} {[%emt
00:01:06]} 11. Nxf3 {[%clk 01:17:52]} {[%emt 00:00:21]} Qc7 {[%clk 01:24:23]}
{[%emt 00:00:20]} 12. Nd2 {[%clk 01:14:17]} {[%emt 00:04:05]} Nc6 {[%clk
01:22:53]} {[%emt 00:02:00]} 13. f3 {[%clk 00:53:26]} {[%emt 00:21:21]} Ne5
{[%clk 01:11:01]} {[%emt 00:12:23]} 14. O-O {[%clk 00:44:58]} {[%emt 00:08:57]}
Nxc4 {[%clk 01:10:43]} {[%emt 00:00:48]} 15. Nb3 {[%clk 00:43:35]} {[%emt
00:01:53]} d5 {[%clk 01:06:28]} {[%emt 00:04:45]} 16. Nd4 {[%clk 00:20:57]}
{[%emt 00:23:07]} Rfc8 {[%clk 01:00:58]} {[%emt 00:06:01]} 17. e4 {[%clk
00:03:20]} {[%emt 00:18:07]} dxe4 {[%clk 00:54:26]} {[%emt 00:07:02]} 18. fxe4
{[%clk 00:02:33]} {[%emt 00:01:18]} Ng4 {[%clk 00:40:13]} {[%emt 00:14:43]} 19.
Rf4 {[%clk 00:02:46]} {[%emt 00:00:16]} Nce3 {[%clk 00:38:19]} {[%emt
00:02:23]} 20. Bxe3 {[%clk 00:03:03]} {[%emt 00:00:14]} Nxe3 {[%clk 00:38:48]}
{[%emt 00:00:01]} 21. Qf2 {[%clk 00:02:36]} {[%emt 00:00:57]} Qxc3 {[%clk
00:38:51]} {[%emt 00:00:28]} 22. Re1 {[%clk 00:02:40]} {[%emt 00:00:25]} Qxd4
{[%clk 00:39:01]} {[%emt 00:00:20]} 23. Qxe3 {[%clk 00:02:03]} {[%emt
00:01:07]} Qxe3+ {[%clk 00:38:35]} {[%emt 00:00:57]} 24. Rxe3 {[%clk 00:02:30]}
{[%emt 00:00:02]} Rc4 {[%clk 00:38:40]} {[%emt 00:00:24]} 25. Ref3 {[%clk
00:01:57]} {[%emt 00:01:03]} f6 {[%clk 00:38:39]} {[%emt 00:00:32]} 26. Rb3
{[%clk 00:02:18]} {[%emt 00:00:09]} e5 {[%clk 00:38:27]} {[%emt 00:00:41]} 27.
Rff3 {[%clk 00:02:07]} {[%emt 00:00:41]} Rxe4 {[%clk 00:38:04]} {[%emt
00:00:54]} 28. Rfc3 {[%clk 00:02:35]} {[%emt 00:00:02]} Rd8 {[%clk 00:30:30]}
{[%emt 00:08:04]} 29. Rc7 {[%clk 00:02:57]} {[%emt 00:00:08]} Re2 {[%clk
00:30:34]} {[%emt 00:00:26]} 30. h3 {[%clk 00:02:32]} {[%emt 00:00:55]} Ra2
{[%clk 00:22:00]} {[%emt 00:09:04]} 31. Rg3 {[%clk 00:01:56]} {[%emt 00:01:06]}
g6 {[%clk 00:22:20]} {[%emt 00:00:10]} 32. Rf3 {[%clk 00:01:44]} {[%emt
00:00:42]} f5 {[%clk 00:22:21]} {[%emt 00:00:30]} 33. Re7 {[%clk 00:01:17]}
{[%emt 00:00:56]} Rad2 {[%clk 00:16:39]} {[%emt 00:06:12]} 34. Rc3 {[%clk
00:01:13]} {[%emt 00:00:33]} R2d7 {[%clk 00:15:45]} {[%emt 00:01:24]} 35. Rxe5
{[%clk 00:01:19]} {[%emt 00:00:24]} Kf7 {[%clk 00:15:38]} {[%emt 00:00:38]} 36.
Rc6 {[%clk 00:01:03]} {[%emt 00:00:46]} Re8 {[%clk 00:15:02]} {[%emt 00:01:06]}
37. Rxe8 {[%clk 00:00:49]} {[%emt 00:00:44]} Kxe8 {[%clk 00:15:31]} {[%emt
00:00:01]} 38. Rc8+ {[%clk 00:01:11]} {[%emt 00:00:09]} Kf7 {[%clk 00:15:28]}
{[%emt 00:00:32]} 39. Rh8 {[%clk 00:01:36]} {[%emt 00:00:05]} Kf6 {[%clk
00:15:39]} {[%emt 00:00:19]} 40. Ra8 {[%clk 00:02:00]} {[%emt 00:00:07]} Ke5
{[%clk 00:15:37]} {[%emt 00:00:31]} 41. Kf2 {[%clk 00:02:21]} {[%emt 00:00:09]}
Kd4 {[%clk 00:15:46]} {[%emt 00:00:21]} 42. Rc8 {[%clk 00:02:45]} {[%emt
00:00:07]} a5 {[%clk 00:13:04]} {[%emt 00:03:12]} 43. bxa5 {[%clk 00:02:08]}
{[%emt 00:01:07]} bxa5 {[%clk 00:10:54]} {[%emt 00:02:40]} 44. Ra8 {[%clk
00:02:35]} {[%emt 00:00:03]} Rd5 {[%clk 00:11:09]} {[%emt 00:00:14]} 45. h4
{[%clk 00:02:08]} {[%emt 00:00:56]} Ke4 {[%clk 00:08:16]} {[%emt 00:03:24]} 46.
Ra7 {[%clk 00:01:45]} {[%emt 00:00:54]} Kf4 {[%clk 00:05:33]} {[%emt 00:03:13]}
47. g3+ {[%clk 00:01:15]} {[%emt 00:00:59]} Kg4 {[%clk 00:05:50]} {[%emt
00:00:13]} 48. Rxh7 {[%clk 00:01:32]} {[%emt 00:00:13]} Rd2+ {[%clk 00:04:25]}
{[%emt 00:01:56]} 49. Ke3 {[%clk 00:01:08]} {[%emt 00:00:53]} Rg2 {[%clk
00:03:58]} {[%emt 00:00:57]} 50. Kd4 {[%clk 00:00:47]} {[%emt 00:00:51]} Rxg3
{[%clk 00:30:29]} {[%emt 00:03:58]} 51. Ra7 {[%clk 00:31:09]} {[%emt 00:00:09]}
Kxh4 {[%clk 00:30:20]} {[%emt 00:00:39]} 52. Rxa5 {[%clk 00:31:31]} {[%emt
00:00:08]} Kg4 {[%clk 00:29:45]} {[%emt 00:01:06]} 53. Ke5 {[%clk 00:31:43]}
{[%emt 00:00:17]} Kg5 {[%clk 00:28:52]} {[%emt 00:01:24]} 54. Ke6 {[%clk
00:31:42]} {[%emt 00:00:30]} Rb3 {[%clk 00:28:27]} {[%emt 00:00:54]} 55. Kf7
{[%clk 00:31:45]} {[%emt 00:00:28]} Rb6 {[%clk 00:28:36]} {[%emt 00:00:21]} 56.
Rc5 {[%clk 00:31:37]} {[%emt 00:00:38]} Kg4 {[%clk 00:28:55]} {[%emt 00:00:11]}
57. Rc1 {[%clk 00:31:51]} {[%emt 00:00:15]} f4 {[%clk 00:29:07]} {[%emt
00:00:19]} 58. Rg1+ {[%clk 00:32:10]} {[%emt 00:00:11]} Kf5 {[%clk 00:29:27]}
{[%emt 00:00:11]} 0-1